Cogmind - Beta 11 X7 @@@ ROGUE MODE // 2021.10.21 @ 22:04:32 Player: Nalzok Result: Destroyed by H-66 Slayer with Gauss Rifle Performance ------------- Evolutions (4) 2000 Regions Visited (11) 2200 Robots Destroyed (100) 500 Value Destroyed (4802) 4802 Prototype IDs (33) 660 Alien Tech Used (0) 0 Bonus (2028) 2028 TOTAL SCORE: 12190 Bonus ------- High Alert Combat Kills 369 Follower Combat Kills 41 Entered Garrisons 600 Used RIF Installer 1500 Aligned with FarCom 300 Friendly Fire -782 Cogmind --------- Core Integrity 0/850 Matter 149/300 Energy 98/100 System Corruption 1% Temperature Cool (0) Movement Core (50) Location -6/Factory Parts ------- > --- POWER (2) -------- (None) > --- PROPULSION (4) --- (None) > --- UTILITY (6) ------ Advanced Visual Processing Unit Advanced Signal Interpreter > --- WEAPON (3) ------- (None) > --- INVENTORY (5) ---- High-capacity Storage Unit YI-UF0's Bottomless Matter Pit (1500) PSU Rigger Plasma Rifle Improved Proton Missile Launcher Peak State ------------ > --- POWER ------------ Light Nuclear Core Micro Nuclear Core > --- PROPULSION ------- Improved Titanium Leg Compact Wheel Compact Wheel > --- UTILITY ---------- Advanced Heat Sink Large Storage Unit Improved Targeting Computer Target Analyzer Relay Coupler [NC] Relay Coupler [Heavy] > --- WEAPON ----------- Mini Assault Cannon Antimatter Cannon Remote Datajack > --- INVENTORY -------- Light Nuclear Core Improved Cooling System Large Storage Unit YI-UF0's Bottomless Matter Pit Improved Light Armor Plating Relay Coupler [NC] Relay Coupler [ARC] Relay Coupler [Hunter] PSU Rigger Gatling Laser Plasma Rifle Improved Proton Missile Launcher Power Sword Power Sword [Rating: 52] Favorites ----------- Power Light Nuclear Core Engine Ion Engine Power Core Light Nuclear Core Propulsion Aluminum Leg Leg Aluminum Leg Wheel Armored Wheel Hover Unit Gravmag System Flight Unit Nuclear Pulse Thruster Utility Medium Storage Unit Device Improved Heat Sink Storage Medium Storage Unit Processor Improved Targeting Computer Hackware Relay Coupler [NC] Protection Layered Light Armor Plating Weapon Improved Light Cannon Energy Gun Gatling Laser Energy Cannon Plasma Cannon Ballistic Gun Flak Gun Ballistic Cannon Improved Light Cannon Launcher Heavy Missile Launcher Special Weapon Remote Datajack Slashing Weapon Power Sword Build | -11 -10 -10 -10 -9 -8 -8 -7 -7 -7 -7 -6 ------- Run | Scr Mat Min Exi Min Mat Gar Fac Gar Fac Gar Fac Slots Evolved 8 | . . . . . 4 . 2 . . . 2 Power 1 | . . . . . . . 1 . . . . Propulsion 2 | . . . . . 2 . . . . . . Utility 4 | . . . . . 2 . 1 . . . 1 Weapon 1 | . . . . . . . . . . . 1 Parts Attached 164 | . 6 11 1 1 9 7 7 9 14 47 52 Power 22 | . 1 1 . . 1 . 1 1 2 5 10 Engine 9 | . 1 1 . . 1 . 1 . . 2 3 Core 13 | . . . . . . . . 1 2 3 7 Reactor . | . . . . . . . . . . . . Propulsion 40 | . 2 5 . . 2 2 3 1 3 8 14 Treads . | . . . . . . . . . . . . Leg 29 | . 2 5 . . 2 2 3 1 3 6 5 Wheel 5 | . . . . . . . . . . 2 3 Hover 1 | . . . . . . . . . . . 1 Flight 5 | . . . . . . . . . . . 5 Utility 36 | . 3 1 1 . 3 . 2 3 4 10 9 Device 16 | . 1 . 1 . 2 . 1 1 1 7 2 Storage 3 | . 1 1 . . . . . . 1 . . Processor 8 | . 1 . . . 1 . . 1 1 . 4 Hackware 5 | . . . . . . . . . 1 1 3 Protection 4 | . . . . . . . 1 1 . 2 . Artifact . | . . . . . . . . . . . . Weapon 66 | . . 4 . 1 3 5 1 4 5 24 19 Energy Gun 11 | . . . . . . . . 1 3 5 2 Energy Cannon 4 | . . . . . . . . . 1 3 . Ballistic Gun 11 | . . . . . . 2 1 2 . 5 1 Ballistic Cannon 16 | . . 3 . . 2 1 . . . 5 5 Launcher 10 | . . 1 . . . 2 . 1 . 5 1 Special Weapon 6 | . . . . . . . . . 1 1 4 Impact Weapon . | . . . . . . . . . . . . Slashing Weapon 8 | . . . . 1 1 . . . . . 6 Piercing Weapon . | . . . . . . . . . . . . Special Melee Weapon . | . . . . . . . . . . . . Unidentified Prototypes 4 | . . 1 . . . . . . . . 3 Corrupted Parts 3 | . . . . . . . . . . 3 . System Corruption 10 | . . . . . . . . . . 10 . Parts Lost 46 | . . . . . . 5 . 3 2 15 21 Power 4 | . . . . . . . . . . 3 1 Propulsion 20 | . . . . . . 2 . . 1 5 12 Utility 8 | . . . . . . . . 1 1 3 3 Weapon 14 | . . . . . . 3 . 2 . 4 5 Highest Loss Streak 9 | . . . . . . 4 . 2 2 9 7 Average Slot Usage (%) 92 | . 93 100 100 100 91 99 95 99 97 87 74 Engine 7 | . 14 14 14 14 9 9 15 12 . . 1 Core 4 | . . . . . . . . 2 13 9 8 Leg 24 | . 28 28 28 28 36 35 30 30 28 17 11 Wheel 1 | . . . . . . . . . . 6 4 Device 12 | . 4 1 10 14 18 27 24 19 7 11 8 Storage 10 | . 14 26 17 14 9 9 7 7 9 7 4 Processor 4 | . 3 . . . . . . 3 7 7 11 Hackware 1 | . . . . . . . . . 3 2 3 Protection 2 | . . . . . . . 1 7 7 6 1 Energy Gun 3 | . 14 . . . . . . 1 12 4 3 Ballistic Gun 2 | . 14 . . . . 2 7 6 . 4 1 Ballistic Cannon 11 | . . 26 28 27 15 10 7 5 . 3 7 Naked Turns 7 | . . . . . . . . . . . 7 Heaviest Build 60 | 12 18 31 31 24 28 28 40 40 54 54 60 Greatest Support 68 | 20 20 25 20 20 50 50 58 63 68 68 50 Greatest Overweight (x) 17 | . . 1 1 1 . 1 . . 1 9 17 Average Overweight (x) . | . . . 1 1 . . . . . . . Largest Inventory Capacity 15 | 8 10 10 10 10 10 10 10 10 15 15 15 Average Capacity 11 | 8 9 10 10 10 10 10 10 10 14 15 13 Most Carried 15 | 5 10 10 10 10 10 10 10 10 15 15 15 Average Carried 11 | 4 8 9 9 10 8 9 9 9 13 14 12 Final Capacity 15 | 8 10 10 10 10 10 10 10 10 15 15 5 Final Carried 15 | 4 10 10 10 10 10 10 10 10 15 15 5 Class Distribution -------------------- 48% | Scavenger-Mutant 21% | Mutant 20% | Bothacker-Mutant 7% | Bothacker-Gunner Dominant Class ---------------- Mutant | -10/Materials Scavenger-Mutant | -10/Mines Mutant | -10/Exiles Mutant | -9/Mines Scavenger-Mutant | -8/Materials Scavenger-Mutant | -8/Garrison Scavenger-Mutant | -7/Factory Scavenger-Mutant | -7/Garrison Bothacker-Mutant | -7/Factory Scavenger-Mutant | -7/Garrison Bothacker-Gunner | -6/Factory Resources | -11 -10 -10 -10 -9 -8 -8 -7 -7 -7 -7 -6 ----------- Run | Scr Mat Min Exi Min Mat Gar Fac Gar Fac Gar Fac Matter Collected 4895 | 194 76 697 300 94 42 210 82 266 556 1591 787 Remotely . | . . . . . . . . . . . . Salvage Created 3033 | . 127 345 . 20 77 134 . 226 312 934 858 Parts 160 | . 7 17 . 2 7 21 . 12 14 50 30 Haulers Intercepted 1 | . 1 . . . . . . . . . . Recyclers Shooed . | . . . . . . . . . . . . Parts Field Recycled . | . . . . . . . . . . . . Retrieved Matter . | . . . . . . . . . . . . Parts Self-Destructed . | . . . . . . . . . . . . Prevented . | . . . . . . . . . . . . Kills | -11 -10 -10 -10 -9 -8 -8 -7 -7 -7 -7 -6 ------- Run | Scr Mat Min Exi Min Mat Gar Fac Gar Fac Gar Fac Combat Hostiles Destroyed 84 | . 2 9 . 1 2 14 . 11 3 23 19 Guns 26 | . 2 . . . . . . 3 2 9 10 Cannons 33 | . . 6 . 1 2 6 . 5 1 5 7 AOE 24 | . . 3 . . . 8 . 3 . 8 2 Classes Destroyed 13 | . 2 4 . 1 1 . . 1 2 2 . Worker 6 | . . 3 . 1 . . . . 1 . 1 Builder 3 | . . 1 . . . . . . . . 2 Tunneler 2 | . . 1 . . . . . . . . 1 Hauler 1 | . 1 . . . . . . . . . . Recycler 4 | . . . . . . . . . 2 . 2 Swarmer 35 | . . 3 . . . 12 . 7 1 6 6 Cutter 3 | . . . . . . . . . . 3 . Grunt 25 | . 2 6 . . . 2 . 1 . 7 7 Duelist 1 | . . . . . . . . . . 1 . Sentry 13 | . . . . . 2 . . 2 1 5 3 Hunter 2 | . . . . . . . . 1 . 1 . Programmer 4 | . . . . . . . . . 1 . 3 Assembled 1 | . . . . 1 . . . . . . . Best Kill Streak 10 | . 2 3 . 1 2 10 . 4 2 5 6 Combat Bots Only 10 | . 2 3 . 1 2 10 . 4 1 5 6 Max Kills in Single Turn 3 | . 1 3 . 1 1 2 . 3 1 3 2 Gunslinging . | . . . . . . . . . . . . Exploded 3 | . . 3 . . . 2 . 3 . 2 1 Melee . | . . . . . . . . . . . . Uniques/NPCs Destroyed 1 | . . 1 . . . . . . . . . YI-UF0 (-10/Mines) Combat | -11 -10 -10 -10 -9 -8 -8 -7 -7 -7 -7 -6 -------- Run | Scr Mat Min Exi Min Mat Gar Fac Gar Fac Gar Fac Damage Taken 7676 | . 131 161 . 31 366 734 . 925 202 2242 2884 Core 1544 | . 13 9 . . 33 143 . 74 51 364 857 Absorbed by Shields 75 | . . . . . . . . 75 . . . Core Remaining (%) 72 | 100 . . . 91 . 68 . . . 30 . Volleys Fired 292 | . 11 26 . 5 6 27 . 40 23 105 49 Largest 3 | . 2 2 . 2 2 2 . 2 2 2 3 Hottest 199 | . 60 78 . 78 78 78 . 67 160 135 199 Shots Fired 528 | . 22 52 . 10 12 43 . 62 37 177 113 Gun 244 | . 22 6 . . . 2 . 37 31 99 47 Cannon 248 | . . 45 . 10 12 31 . 24 2 70 54 Launcher 19 | . . 1 . . . 10 . 1 . 6 1 Special 17 | . . . . . . . . . 4 2 11 Kinetic 346 | . 11 48 . 10 12 33 . 58 . 112 62 Thermal 109 | . 11 3 . . . . . . 21 35 39 Explosive 19 | . . 1 . . . 10 . 1 . 6 1 Electromagnetic 37 | . . . . . . . . 3 12 22 . Robot Hit Streak 33 | . 4 6 . 4 6 5 . 10 13 33 21 Robot Miss Streak 6 | . 2 6 . 2 3 5 . 6 5 4 5 Penetration Max . | . . . . . . . . . . . . Secondary Targets . | . . . . . . . . . . . . Shots Hit Robots 369 | . 12 29 . 6 5 14 . 48 28 129 98 Core Hits 235 | . 8 18 . 3 3 18 . 38 13 76 58 Critical Kills 1 | . . . . . . . . . . 1 . Critical Parts Destroyed 1 | . . . . . . . . . . 1 . Critical Strikes 9 | . . . . 1 . . . . . 5 3 Destroy 2 | . . . . . . . . . . 2 . Blast 7 | . . . . 1 . . . . . 3 3 Melee Attacks 44 | . . . . 1 1 . . . . . 42 Impact . | . . . . . . . . . . . . Slashing 44 | . . . . 1 1 . . . . . 42 Piercing . | . . . . . . . . . . . . Sneak Attacks 2 | . . . . . . . . . . . 2 Combat Hostiles . | . . . . . . . . . . . . Follow-up Attacks . | . . . . . . . . . . . . Damage Inflicted 8934 | . 118 718 . 125 106 879 . 1034 505 2554 2895 Guns 2953 | . 118 18 . . . . . 522 440 916 939 Cannons 3365 | . . 592 . 125 106 205 . 286 65 850 1136 Explosions 2269 | . . 108 . . . 674 . 226 . 788 473 Melee 347 | . . . . . . . . . . . 347 Ramming . | . . . . . . . . . . . . Kinetic 4205 | . 61 600 . 125 106 205 . 782 . 1042 1284 Thermal 2067 | . 57 10 . . . . . . 419 504 1077 Explosive 1983 | . . 108 . . . 674 . 226 . 788 187 Electromagnetic 317 | . . . . . . . . 26 86 205 . Impact 15 | . . . . . . . . . . 15 . Slashing 347 | . . . . . . . . . . . 347 Piercing . | . . . . . . . . . . . . Highest Corruption 11 | . . . . . . . . . 1 11 1 Average Corruption 6 | . . . . . . . . . 1 8 1 Corruption Purged . | . . . . . . . . . . . . Effects 60 | . . . . . . . . . . 56 4 Message Errors 15 | . . . . . . . . . . 14 1 Matter Fused 13 | . . . . . . . . . . 13 . Heat Flow Errors 4 | . . . . . . . . . . 4 . Energy Discharges 8 | . . . . . . . . . . 7 1 Data Loss (minor) 9 | . . . . . . . . . . 7 2 Data Loss (major) 5 | . . . . . . . . . . 5 . Misfires 3 | . . . . . . . . . . 3 . Alerts 1 | . . . . . . . . . . 1 . Weapon Failures 2 | . . . . . . . . . . 2 . Overload Shots . | . . . . . . . . . . . . Overflow Damage 268 | . . 12 . 1 . 72 . . . . 183 Projectiles 41 | . . 12 . 1 . 2 . . . . 26 Explosions 144 | . . . . . . 70 . . . . 74 Melee 83 | . . . . . . . . . . . 83 Knockbacks 25 | . . 5 . 1 . 2 . 2 . 2 13 Impact . | . . . . . . . . . . . . Kinetic 23 | . . 5 . 1 . 2 . 2 . 1 12 Secondary 2 | . . . . . . . . . . 1 1 Self-Inflicted Damage 229 | . . . . . . 134 . . . 74 21 Shots 9 | . . . . . . 4 . . . 4 1 Rammed . | . . . . . . . . . . . . Targets Rammed . | . . . . . . . . . . . . Kicked . | . . . . . . . . . . . . Crushed . | . . . . . . . . . . . . Highest Temperature 395 | . 118 120 . 36 . 7 . 11 90 395 209 Average Temperature 62 | . 55 34 . 18 . 7 . 5 24 116 72 Received Heat Transfer 1938 | . 93 63 . . 144 198 . 228 24 669 519 Effects 1 | . . . . . . . . . . 1 . Shutdowns 1 | . . . . . . . . . . 1 . Siege Activations . | . . . . . . . . . . . . Robots Corrupted 1 | . . . . . . . . . . 1 . Combat Hostiles 1 | . . . . . . . . . . 1 . Parts Fried 3 | . . . . . . . . . . 3 . Impact Corruptions . | . . . . . . . . . . . . Robots Melted . | . . . . . . . . . . . . Combat Hostiles . | . . . . . . . . . . . . Parts Melted 10 | . . . . . . . . . 2 2 6 Heat Transferred 4025 | . 125 25 . . . . . . 875 1050 1950 Parts Sabotaged 5 | . . . . . . . . . . . 5 Parts Stolen . | . . . . . . . . . . . . Parts Stripped . | . . . . . . . . . . . . Power Chain Reactions . | . . . . . . . . . . . . Missiles Intercepted . | . . . . . . . . . . . . Alert | -11 -10 -10 -10 -9 -8 -8 -7 -7 -7 -7 -6 ------- Run | Scr Mat Min Exi Min Mat Gar Fac Gar Fac Gar Fac Peak Influence 1145 | . 72 189 . 5 88 498 261 508 333 836 1145 Initial 438 | . . 27 . . . 57 261 182 266 21 438 Average 344 | . 37 92 . 3 19 312 261 328 173 521 669 Maximum Alert Level 4 | . . . . . . 2 1 2 1 3 4 Low Security (%) 37 | 100 100 100 . 100 100 25 . 2 59 13 . Level 1 22 | . . . . . . 42 100 75 40 11 . Level 2 26 | . . . . . . 32 . 22 . 45 61 Level 3 13 | . . . . . . . . . . 30 36 Level 4 . | . . . . . . . . . . . . Level 5 . | . . . . . . . . . . . . High Security . | . . . . . . . . . . . . Max Security . | . . . . . . . . . . . . Squads Dispatched 26 | . 1 1 . . 2 . . . 4 . 18 Investigation 5 | . . . . . . . . . 2 . 3 Extermination 4 | . . . . . . . . . 1 . 3 Reinforcement 6 | . 1 . . . . . . . . . 5 Assault 6 | . . 1 . . . . . . . . 5 Garrison 5 | . . . . . 2 . . . 1 . 2 Intercept . | . . . . . . . . . . . . Construction Impeded . | . . . . . . . . . . . . Haulers Reinforced 1 | . . . . . . . . . . . 1 Active Scanning Responses . | . . . . . . . . . . . . Cargo Convoy Interrupts 1 | . . . . . . . . . . . 1 Stealth | -11 -10 -10 -10 -9 -8 -8 -7 -7 -7 -7 -6 --------- Run | Scr Mat Min Exi Min Mat Gar Fac Gar Fac Gar Fac Distress Signals . | . . . . . . . . . . . . Communications Jammed . | . . . . . . . . . . . . Distress Signals . | . . . . . . . . . . . . Times Spotted 149 | . 5 16 . 1 6 15 . 11 7 24 64 Peak Tracking Total 11 | . 2 3 . 1 4 7 . 4 2 6 11 Tactical Retreats 17 | . . 2 . . . 3 . . . 3 9 Traps | -11 -10 -10 -10 -9 -8 -8 -7 -7 -7 -7 -6 ------- Run | Scr Mat Min Exi Min Mat Gar Fac Gar Fac Gar Fac Traps Triggered 9 | . . . . . . 3 . 2 . 4 . Indirectly . | . . . . . . . . . . . . Trap Hack Attempts . | . . . . . . . . . . . . Triggered . | . . . . . . . . . . . . Disarmed . | . . . . . . . . . . . . Reprogrammed . | . . . . . . . . . . . . Reused . | . . . . . . . . . . . . Traps Extracted . | . . . . . . . . . . . . Installed . | . . . . . . . . . . . . Triggered 1 | . . . . . . . . . . . 1 Machines | -11 -10 -10 -10 -9 -8 -8 -7 -7 -7 -7 -6 ---------- Run | Scr Mat Min Exi Min Mat Gar Fac Gar Fac Gar Fac Machines Disabled 16 | . . 2 . . . 2 . 2 . 6 4 Max in Single Turn 3 | . . 1 . . . 1 . 1 . 2 3 Garrison Access 2 | . . . . . . . . . . . 2 Garrison Relay 7 | . . . . . . 2 . 2 . 3 . Phase Generator 1 | . . . . . . . . . . 1 . Machines Sabotaged . | . . . . . . . . . . . . Garrisons Compromised 1 | . . . . . . . . . . . 1 Overloaded Fab Kills . | . . . . . . . . . . . . Fab Network Shutdowns . | . . . . . . . . . . . . Hacking | -11 -10 -10 -10 -9 -8 -8 -7 -7 -7 -7 -6 --------- Run | Scr Mat Min Exi Min Mat Gar Fac Gar Fac Gar Fac Machines Accessed 20 | . . . 2 . 2 . 1 . 8 . 7 Terminals 11 | . . . . . 1 . . . 4 . 6 Fabricators 1 | . . . . . . . . . 1 . . Repair Stations 2 | . . . . . . . . . 2 . . Recycling Units . | . . . . . . . . . . . . Scanalyzers . | . . . . . . . . . . . . Garrison Access 4 | . . . . . 1 . 1 . 1 . 1 Total Hacks 44 | . . . 5 . 6 . 1 . 14 . 18 Successful 20 | . . . 5 . 4 . 1 . 7 . 3 Failed 24 | . . . . . 2 . . . 7 . 15 Catastrophic 8 | . . . . . . . . . 1 . 7 Database Lockouts . | . . . . . . . . . . . . Manual 16 | . . . 3 . 4 . . . 2 . 7 Terminals 29 | . . . . . 5 . . . 7 . 17 Fabricators 2 | . . . . . . . . . 2 . . Repair Stations 4 | . . . . . . . . . 4 . . Recycling Units . | . . . . . . . . . . . . Scanalyzers . | . . . . . . . . . . . . Garrison Access 4 | . . . . . 1 . 1 . 1 . 1 Terminal Hacks 12 | . . . 5 . 1 . . . 4 . 2 Record 4 | . . . 4 . . . . . . . . Part Schematic 2 | . . . . . . . . . 2 . . Prototype ID Bank 1 | . . . . . . . . . 1 . . Terminal Index 1 | . . . . . 1 . . . . . . Garrison Index 1 | . . . . . . . . . . . 1 Unreport Threat 2 | . . . . . . . . . 1 . 1 EX-Prototype ID Bank 1 | . . . 1 . . . . . . . . Fabricator Hacks . | . . . . . . . . . . . . Repair Station Hacks 2 | . . . . . . . . . 2 . . Scan Component 2 | . . . . . . . . . 2 . . Recycling Unit Hacks . | . . . . . . . . . . . . Scanalyzer . | . . . . . . . . . . . . Garrison Access Hacks 4 | . . . . . 1 . 1 . 1 . 1 Unlock Access 3 | . . . . . 1 . 1 . 1 . . Seal Access 1 | . . . . . . . . . . . 1 Unauthorized Hacks 2 | . . . . . 2 . . . . . . Terminals 2 | . . . . . 2 . . . . . . Botnet 1 | . . . . . 1 . . . . . . Operators 1 | . . . . . 1 . . . . . . Fabricators . | . . . . . . . . . . . . Repair Stations . | . . . . . . . . . . . . Recycling Units . | . . . . . . . . . . . . Scanalyzers . | . . . . . . . . . . . . Garrison Access . | . . . . . . . . . . . . Data Cores Recovered . | . . . . . . . . . . . . Used . | . . . . . . . . . . . . Hacking Detections 13 | . . . . . 1 . . . 6 . 6 Full Trace Events 5 | . . . . . . . . . 2 . 3 Feedback Events 1 | . . . . . . . . . . . 1 Corruption 1 | . . . . . . . . . . . 1 Feedback Blocked . | . . . . . . . . . . . . Robot Schematics Acquired . | . . . . . . . . . . . . Robots Built . | . . . . . . . . . . . . Matter . | . . . . . . . . . . . . Time . | . . . . . . . . . . . . Total Robot Build Rating . | . . . . . . . . . . . . Part Schematics Acquired 2 | . . . . . . . . . 2 . . Parts Built . | . . . . . . . . . . . . Matter . | . . . . . . . . . . . . Time . | . . . . . . . . . . . . Total Part Build Rating . | . . . . . . . . . . . . Parts Repaired . | . . . . . . . . . . . . Time . | . . . . . . . . . . . . Parts Recycled . | . . . . . . . . . . . . Recycled Matter . | . . . . . . . . . . . . Retrieved Matter . | . . . . . . . . . . . . Retrieved Components . | . . . . . . . . . . . . Parts Scanalyzed . | . . . . . . . . . . . . Part Schematics Acquired . | . . . . . . . . . . . . Parts Damaged . | . . . . . . . . . . . . Bothacking | -11 -10 -10 -10 -9 -8 -8 -7 -7 -7 -7 -6 ------------ Run | Scr Mat Min Exi Min Mat Gar Fac Gar Fac Gar Fac Used RIF Installer 3 | . . . . . . 1 . 1 . 1 . Watcher Feeds 1 | . . . . . . . . . . 1 . Program Shield 1 | . . . . . . . . 1 . . . Robots Hacked 6 | . . . . . . . . . 2 1 3 Non-combat 4 | . . . . . . . . . 2 . 2 Combat 2 | . . . . . . . . . . 1 1 Robot Hacks Applied 6 | . . . . . . . . . 2 1 3 drop_inventory 1 | . . . . . . . . . 1 . . map_route 3 | . . . . . . . . . 1 . 2 overload_power 1 | . . . . . . . . . . 1 . amplify_resonance 1 | . . . . . . . . . . . 1 Relay Couplers Released 29 | . . . . . . 6 . 6 . 14 3 Machine Destruction 29 | . . . . . . 6 . 6 . 14 3 Attached 5 | . . . . . . . . . 1 1 3 Robots Rewired 1 | . . . . . . . . 1 . . . Allies Hacked . | . . . . . . . . . . . . Hacks Repelled . | . . . . . . . . . . . . Allies | -11 -10 -10 -10 -9 -8 -8 -7 -7 -7 -7 -6 -------- Run | Scr Mat Min Exi Min Mat Gar Fac Gar Fac Gar Fac Total Allies 2 | . . 1 . . . . . 1 . . . Largest Group 1 | . . 1 . . . . . 1 1 . . Highest-Rated Group 32 | . . 31 . . . . . 32 32 . . Highest-Rated Ally 32 | . . 31 . . . . . 32 32 . . Total Orders . | . . . . . . . . . . . . Ally Attacks 20 | . . 15 . . . . . . 5 . . Total Damage 343 | . . 188 . . . . . . 155 . . Kills 4 | . . 3 . . . . . . 1 . . Allies Corrupted . | . . . . . . . . . . . . Allies Melted . | . . . . . . . . . . . . Intel | -11 -10 -10 -10 -9 -8 -8 -7 -7 -7 -7 -6 ------- Run | Scr Mat Min Exi Min Mat Gar Fac Gar Fac Gar Fac Robot Analysis Total . | . . . . . . . . . . . . Derelict Logs Recovered 4 | . . 2 . 2 . . . . . . . Drone Launches . | . . . . . . . . . . . . Drone Recoveries . | . . . . . . . . . . . . Exploration | -11 -10 -10 -10 -9 -8 -8 -7 -7 -7 -7 -6 ------------- Run | Scr Mat Min Exi Min Mat Gar Fac Gar Fac Gar Fac Turns Passed 9797 | 2 264 1194 694 572 248 1002 271 1009 987 1745 1809 Spaces Moved 5323 | 1 181 562 346 217 58 399 211 418 679 1022 1229 Core 508 | . . . . . . . . . . 13 495 Treads . | . . . . . . . . . . . . Legs 3872 | 1 181 562 346 217 58 399 211 418 679 440 360 Wheels 924 | . . . . . . . . . . 569 355 Hover 2 | . . . . . . . . . . . 2 Flight 17 | . . . . . . . . . . . 17 Fastest Speed 34 | 120 120 120 200 200 120 120 120 122 115 105 34 Average Speed 137 | 120 120 193 200 200 120 120 120 122 124 127 115 Slowest Speed 900 | 120 120 200 200 200 120 200 122 122 205 500 900 Overloaded Moves . | . . . . . . . . . . . . Propulsion Burnouts . | . . . . . . . . . . . . Robots Hopped . | . . . . . . . . . . . . Cave-ins Triggered 1 | . . . . . . . . . . . 1 Exploration Rate (%) 41 | 2 36 99 62 47 7 53 6 40 23 91 29 Regions Visited 11 Branch Regions 3 Pre-discovered Areas 4 | . . 1 1 2 . . . . . . . Known Exits Taken 3 | . . . . . 1 . 1 . 1 . . Unknown Exits Taken 5 | 1 1 1 1 1 . . . . . . . Scrap Searched 3 | . . 1 . 2 . . . . . . . Spaces Dug 37 | . . . . 1 1 . . . . . 35 Terrain Destroyed 268 | . . 10 . 1 2 37 . 16 . 124 78 Melee 37 | . . . . 1 1 . . . . . 35 Projectile 7 | . . 1 . . 1 . . . . . 5 AOE 224 | . . 9 . . . 37 . 16 . 124 38 Terrain Rammed . | . . . . . . . . . . . . Walls Destroyed . | . . . . . . . . . . . . Machines Disabled . | . . . . . . . . . . . . Actions | -11 -10 -10 -10 -9 -8 -8 -7 -7 -7 -7 -6 --------- Run | Scr Mat Min Exi Min Mat Gar Fac Gar Fac Gar Fac Total 7258 | 2 209 626 349 344 220 884 231 857 785 1292 1459 Wait 1230 | . . 4 1 121 141 419 . 378 51 61 54 Move 5314 | . 180 561 345 216 58 398 211 417 679 1021 1228 Hop . | . . . . . . . . . . . . Pick Up 77 | . 7 9 1 . 3 12 5 3 8 18 11 Fast Attach 55 | . 2 1 . . 2 1 3 3 5 15 23 Attach 21 | . . . . . 3 4 1 1 . 6 6 Detach 4 | . 1 . . . 1 . . . . . 2 Swap 88 | . 4 10 1 1 4 2 3 5 9 26 23 Drop 95 | 2 4 15 1 . 1 9 8 6 10 19 20 Fire 292 | . 11 26 . 5 6 27 . 40 23 105 49 Melee 44 | . . . . 1 1 . . . . . 42 Ram . | . . . . . . . . . . . . Kick . | . . . . . . . . . . . . Crush . | . . . . . . . . . . . . Escape Stasis 34 | . . . . . . 12 . . . 21 1 Rewire 4 | . . . . . . . . 4 . . . Trap . | . . . . . . . . . . . . Miscellaneous . | . . . . . . . . . . . . Route ------- -11/Scrapyard -10/Materials (discovered 2 exits: [*Mat] / [*Min]) -10/Mines (discovered 3 exits: [*Mat x2] / *Exi) -10/Exiles (discovered 2 exits: [*Min x2]) -9/Mines -8/Materials -8/Garrison -7/Factory -7/Garrison -7/Factory -7/Garrison (discovered 3 exits: *Fac x3) -6/Factory History --------- Turn | Location | Event 3 | -11/Scrapyard | Discovered new exit (range 0) 3 | -11/Scrapyard | Entered Materials 153 | -10/Materials | Discovered new exit (range 11) 255 | -10/Materials | Discovered new exit (range 9) 267 | -10/Materials | Entered Mines 267 | -10/Mines | Discovered new exit (range 12) 292 | -10/Mines | YI-UF0 nonchalantly dropped a Grenade Launcher on the ground 315 | -10/Mines | Build established: Mutant 343 | -10/Mines | Destroyed YI-UF0 353 | -10/Mines | Found Prototype Storage 353 | -10/Mines | Identified YI-UF0's Bottomless Matter Pit 638 | -10/Mines | Build established: Scavenger-Mutant 717 | -10/Mines | Discovered new exit (range 11) 724 | -10/Mines | Met a Derelict testing a Signal Generator 1058 | -10/Mines | A weapon hastily lodged in a ceiling crevice suddenly fell to the ground 1311 | -10/Mines | Learned location of Zion (-6) 1323 | -10/Mines | Learned Materials security intel 1451 | -10/Mines | Deemed a non-threat by the Exiles lab entrance 1453 | -10/Mines | Discovered new exit (range 5) 1461 | -10/Mines | Entered Exiles 1491 | -10/Exiles | Discovered new exit (range 15) 1511 | -10/Exiles | Met 8R-AWN 1543 | -10/Exiles | Met EX-HEX 1609 | -10/Exiles | Met EX-BIN 1633 | -10/Exiles | Aligned with FarCom system 1635 | -10/Exiles | Given EX-Vault access code 1685 | -10/Exiles | Opened EX-Vault 1716 | -10/Exiles | Found PSU Rigger 1761 | -10/Exiles | Warned to stay clear of 0b10 Research branches 1942 | -10/Exiles | Build established: Mutant 1949 | -10/Exiles | Met EX-DEC 2139 | -10/Exiles | Discovered new exit (range 10) 2155 | -10/Exiles | Left Exiles lab with PSU Rigger 2155 | -10/Exiles | Entered Mines 2421 | -9/Mines | Learned location of Storage (-8) 2492 | -9/Mines | Assembled infested the area 2699 | -9/Mines | Discovered new exit (range 14) 2727 | -9/Mines | Entered Materials 2727 | -8/Materials | Evolved 4 slots: Propulsion x2, Utility x2 2975 | -8/Materials | Identified exit to Garrison 2975 | -8/Materials | Entered Garrison 2981 | -8/Garrison | Installed Relay Interface Framework 3025 | -8/Garrison | Build established: Scavenger-Mutant 3026 | -8/Garrison | Triggered checkpoint 3155 | -8/Garrison | Triggered checkpoint 3233 | -8/Garrison | Triggered checkpoint 3256 | -8/Garrison | Lost 4 parts (2n2w) 3281 | -8/Garrison | Destroyed 10 combat bots 3400 | -8/Garrison | Triggered checkpoint 3413 | -8/Garrison | Garrison Relay disabled 3500 | -8/Garrison | Triggered checkpoint 3642 | -8/Garrison | Triggered checkpoint 3671 | -8/Garrison | Garrison Relay disabled 3964 | -8/Garrison | Discovered new exit (range 9) 3977 | -8/Garrison | Entered Factory 3977 | -7/Factory | Evolved 2 slots: Power x1, Utility x1 4248 | -7/Factory | Identified exit to Garrison 4248 | -7/Factory | Entered Garrison 4318 | -7/Garrison | Triggered checkpoint 4346 | -7/Garrison | Garrison Relay disabled 4477 | -7/Garrison | Triggered checkpoint 4983 | -7/Garrison | Discovered new exit (range 11) 5001 | -7/Garrison | Expanded RIF knowledge: Program Shield 5028 | -7/Garrison | Triggered checkpoint 5163 | -7/Garrison | Garrison Relay disabled 5257 | -7/Garrison | Entered Factory 5257 | -7/Factory | Accompanied by 1 ally 5663 | -7/Factory | Build established: Bothacker-Mutant 5815 | -7/Factory | Garrison activated, responded to threat 6244 | -7/Factory | Identified exit to Garrison 6244 | -7/Factory | Entered Garrison 6471 | -7/Garrison | Phase Generator disabled 6518 | -7/Garrison | Triggered checkpoint 6563 | -7/Garrison | Triggered checkpoint 6653 | -7/Garrison | Lost 5 parts (1p1n1u2w) 6768 | -7/Garrison | Triggered checkpoint 6795 | -7/Garrison | Core integrity fell below 50% 6829 | -7/Garrison | Lost 9 parts (2p4n2u1w) 7001 | -7/Garrison | System corruption reached 10% 7122 | -7/Garrison | Triggered checkpoint 7131 | -7/Garrison | Garrison Relay disabled 7236 | -7/Garrison | Discovered new exit (range 10) 7262 | -7/Garrison | Triggered checkpoint 7370 | -7/Garrison | Discovered new exit (range 9) 7464 | -7/Garrison | Garrison Relay disabled 7666 | -7/Garrison | Triggered checkpoint 7862 | -7/Garrison | Garrison Relay disabled 7886 | -7/Garrison | Triggered checkpoint 7933 | -7/Garrison | Discovered new exit (range 15) 7981 | -7/Garrison | Expanded RIF knowledge: Watcher Feeds 7989 | -7/Garrison | Entered Factory 7989 | -6/Factory | Evolved 2 slots: Utility x1, Weapon x1 8339 | -6/Factory | First assault squad dispatched 8544 | -6/Factory | Lost 4 parts (2n1u1w) 8905 | -6/Factory | Garrison activated, responded to threat 8950 | -6/Factory | Lost 3 parts (2n1u) 9375 | -6/Factory | Cargo convoy interrupted 9438 | -6/Factory | Released all parts (7) 9441 | -6/Factory | Core integrity fell below 50% 9463 | -6/Factory | Lost 7 parts (1p3n1u2w) 9529 | -6/Factory | Crushed by falling debris 9676 | -6/Factory | Core integrity fell below 20% 9706 | -6/Factory | Lost 3 parts (3n) 9735 | -6/Factory | Build established: Mutant 9798 | -6/Factory | Destroyed by H-66 Slayer with Gauss Rifle Last Messages --------------- 09672_ Nuclear Pulse Thruster blown off. 09672_ Power Sword blown off. 09672_ E-15 Imp destroyed. 09673_ Acquired Cesium-ion Thruster. 09675_ Cesium-ion Thruster destroyed. 09676_ Acquired Power Sword. 09693_ System corrupted: Component data lost. 09747_ Acquired 1 matter. 09755_ Acquired 19 matter. 09759_ C-30 ARC bursts open, deploying its payload. 09759_ G-67 Veteran unfolds itself. 09759_ G-50 Soldier unfolds itself. 09759_ L-41 Fighter unfolds itself. 09759_ G-50 Soldier unfolds itself. 09759_ I-36 Angel unfolds itself. 09776_ Acquired Adv. Signal Interpreter. 09786_ W-25 Informer destroyed. 09789_ Power Sword destroyed. 09791_ Drone sends a signal. 09795_ Penetrated by Slug. Map ----- +----------------------------------------------------+ | ?????????????????????????????????????????????????? | | ?????????????????????????????????????????????????? | | ?????????????????????????????????????????????????? | | ?????????????????????????????????????????????????? | | ?????????????????????????????????????????????????? | | ?????????????????????????????????????????????????? | | ?????????????????????????????????????????????????? | | ?????????????????????????????????????????????????? | | ?????????????????###############################?? | | ?????????????????# ## #?? | | ?????????????????# """" """" ""## #?? | | ????###??????????# """" """" ""## #?? | | ##### ####???????# """" """" T"## #?? | | ### ######### """" """" ""## #?? | | """ ## # # # # # """" """" ""## #?? | | """ ##### # # ### """" """" # #?? | | """ #?########### ## ### | | """ #???????????# ! ## # | | #???????????# ! ## # | | """ #???????????#####+##+################+##### | | """ #???????????????# # | | """ #???????????????# # | | """ #???????????????# ^ # | | #???????????????# ^ + | | #???????????????# ^ # | | ##??????????????# @ p !* # | | ! #??????????????# o R =%= # | | ##??????????????# k ######### # | | ###################### h #??????## # | | n k #??????## ### | | #???????# w### #?? | | """"" #??????## #?# #?? | | "" F" #??????## #?# #?? | | "" "" #??????## #?# #?? | | ^ #???????# #?#+### | | #???????# #?# | | #### """"""" #############????# #?# | | ???# """"""" ### # ##???# #?# | | ???# """"""" # #???# #?# | | ???# """"""" w# #??## #?# " F | | ???# u # #?### #?# """ | | ???# ^""""""" # [ G##### ### ### | | ???# """"""" + ## ## # """ | | ???# """"""" # "# ### # """ | | ???# """"""" *#] % ##?# # """ | | ???# # / [ ! #??# # | | ???# """"""" # % ! #??# # | | ???# """"""" # #??# # | | ???# """"""" # ##??# ^ # | | ???# """"""" # * * !#???# ^# | +----------------------------------------------------+ Best States ------------- Heat Dissipation 83 Energy Generation 27 Energy Capacity 415 Matter Stores 700 Matter Capacity 1800 Sight Range 20 Terrain Scan Density 85 Jamming Range 8 Armor Coverage 150 Evasion (%) 55 Targeting Accuracy 6 Target Analysis 5 Salvage Targeting 1 Relay Coupler Types 28 Relay Coupler Value 2 Item Schematics ----------------- Adv. Heat Sink | -7/Factory | Hacked Enh. Coil Gun | -7/Factory | Hacked Robot Schematics ------------------ None Fabricated ------------ Nothing Alien Tech Used ----------------- None Achievements -------------- None Challenges ------------ None Game ------ Seed GaussCryofiberPick Manual? 0 Play Time 01:16:28 Cumulative 328.3 hours Start 2021.09.06 @ 19:31:18 End 2021.10.21 @ 22:04:32 Sessions 3 Manual Loads 0 Difficulty Rogue Special Mode None Game No. 464 Rogue 463 Adventurer 0 Explorer 1 Win Type - Total 2 Types 2/0/0/0/0/0/0/0/0 Lore% 70 Gallery% 82 Achievement% 60 Wizard Run 0 Options --------- ASCII 1 Keyboard 1 Movement Vi Keybinds 0 Fullscreen 2 Font 12/Smallcaps Map View 76x56 Tactical HUD 1 Map Filters NONE Filters LOW_CONTRAST(13,24,33) Steam 0 RUN: 8de2ca65-a061-4182-b7b0-97ee3535d24b